bitfinex-derivatives/quotes_ETHF0:USTF0_20250430
["timestamp","ask_amount","ask_price","bid_price","bid_amount"]
[1746021547236,1.14795,1741.8,1741.7,40.8]
[1746021547440,11.14795,1741.8,1741.7,40.8]
[1746021547635,16.35615834,1741.8,1741.7,1.14801]
[1746021548036,6.07697,1742.3,1741.8,1.14792]
[1746021548037,6.07688,1742.3,1741.8,1.14792]
[1746021548241,6.35615834,1741.8,1741.7,1.14801]
[1746021548436,6.35615834,1741.8,1741.4,3.2078]
[1746021548637,7.50429834,1741.5,1741.4,3.2078]
[1746021548839,9.22659834,1741.5,1740.8,73.6815]
[1746021549039,6.35615834,1741.2,1741.1,1.14841]
[1746021549239,6.35615834,1741.2,1740.9,3.2078]
[1746021549746,1.14758,1742.4,1741.3,5.7413]
[1746021550045,6.35615834,1742.1,1741.8,6.07762]
[1746021550245,3.2078,1742.6,1742.2,1.14764]
[1746021550442,1.14759,1742.4,1742.3,1.14762]
[1746021550640,6.35615834,1742.4,1742.3,1.14762]
[1746021550837,1.14721,1743.0,1742.8,1.14723]
[1746021551138,10.0,1743.0,1742.6,3.2078]
[1746021551343,5.02052834,1742.8,1742.7,1.14735]
[1746021551649,5.02052834,1742.7,1742.6,3.2078]
[1746021551951,5.02052834,1742.7,1742.6,4.35522]
[1746021552148,3.2078,1743.5,1742.6,3.2078]
[1746021552351,1.14687,1743.5,1743.0,3.2078]
[1746021552550,3.74552834,1743.2,1743.0,3.2078]
[1746021552851,10.0,1743.5,1743.4,1.14689]
[1746021553346,13.74552834,1743.5,1743.4,1.14689]
[1746021553539,3.74552834,1743.5,1743.4,1.14689]
[1746021553739,1.14653,1744.0,1743.4,3.2078]
[1746021553949,3.74552834,1743.7,1743.4,3.2078]
[1746021554340,10.0,1743.7,1743.6,4.3545]
[1746021554659,3.74552834,1743.4,1743.3,1.14693]
[1746021555151,13.74552834,1743.4,1743.1,1.14705]
[1746021555342,3.74552834,1743.3,1743.2,3.2078]
[1746021555545,3.74552834,1743.4,1743.2,3.2078]
[1746021555848,3.74552834,1743.3,1743.2,1.14702]
[1746021556050,4.89248834,1743.3,1743.1,1.14703]
[1746021556254,3.74552834,1743.2,1743.0,3.2078]
[1746021556453,3.74552834,1743.1,1742.8,3.2078]
[1746021556650,3.74552834,1742.9,1742.8,1.14729]
[1746021556945,1.14671,1743.7,1743.5,1.14677]
[1746021557247,3.74552834,1743.6,1743.2,4.35478]
[1746021557450,4.89248834,1743.3,1743.2,3.2078]
[1746021557639,3.74552834,1743.3,1742.8,6.07593]
[1746021557949,3.74552834,1743.3,1743.2,1.14702]
[1746021558146,1.14671,1743.7,1743.2,1.14702]
[1746021558348,3.74552834,1743.6,1743.5,1.1468]
[1746021558552,3.74552834,1743.5,1743.4,1.14685]
[1746021558748,3.74552834,1743.4,1743.2,40.8]
[1746021559054,3.74552834,1743.3,1743.2,1.14702]
[1746021559653,1.14675,1743.7,1743.1,6.07549]
[1746021559944,3.74552834,1743.3,1743.1,3.2078]
[1746021560352,1.14686,1743.5,1743.3,1.1469]
[1746021560553,3.74552834,1743.2,1743.1,3.2078]
[1746021560746,3.74552834,1743.2,1743.1,4.35489]
[1746021560946,4.89254834,1743.2,1743.1,3.2078]
[1746021561253,14.89259834,1743.2,1742.8,6.07599]
[1746021561453,3.74552834,1743.0,1742.9,1.14722]
[1746021561652,3.74552834,1742.9,1742.8,3.2078]
[1746021561851,1.14768,1742.2,1742.0,70.827]
[1746021562162,4.89320834,1742.2,1742.1,5.73766499]
[1746021562343,9.89320834,1742.2,1742.1,5.73766499]
[1746021562544,4.89320834,1742.2,1742.1,5.73766499]
[1746021562746,9.89320834,1742.2,1742.1,5.73766499]
[1746021563053,1.14781,1742.0,1741.9,14.93392748]
[1746021563250,8.10113834,1742.0,1741.9,14.93392748]
[1746021563553,4.89340834,1741.9,1741.8,13.57987837]
[1746021563756,1.14821,1741.4,1741.3,19.49868833]
[1746021564053,4.89373834,1741.4,1741.3,19.49868833]
[1746021564254,3.74552834,1741.4,1741.3,19.49868833]
[1746021564655,9.89373834,1741.4,1741.3,19.49868833]
[1746021564954,1.14836,1741.2,1740.9,1.14853]
[1746021565154,3.74552834,1740.9,1740.7,4.35642]
[1746021565350,3.74552834,1740.9,1740.4,3.2078]
[1746021565546,3.74552834,1740.5,1739.9,22.70648833]
[1746021565747,3.74552834,1740.2,1740.0,1.14908]
[1746021565948,3.74552834,1740.1,1739.9,22.70648833]
[1746021566254,3.74552834,1740.4,1740.3,1.14893]
[1746021566455,3.74552834,1740.6,1740.5,1.1488]
[1746021566658,3.74552834,1740.2,1740.0,1.14907]
[1746021566953,1.14913,1740.0,1739.9,19.49868833]
[1746021567158,4.35693,1740.0,1739.9,15.75315999]
[1746021567352,1.14993,1738.8,1738.7,4.84536913]
[1746021567555,3.2078,1738.8,1738.3,29.6242164]
[1746021567755,3.828,1740.2,1738.3,29.6242164]
[1746021567756,3.2078,1738.6,1738.3,29.6242164]
[1746021568160,1.15019,1738.4,1738.3,19.6242164]
[1746021568358,3.2078,1738.4,1738.1,30.71043985]
[1746021568558,4.35812,1738.2,1738.1,30.71043985]
[1746021568859,3.2078,1738.2,1738.1,30.71043985]
[1746021569049,9.35812,1738.2,1738.1,30.71043985]
[1746021569257,4.35826,1738.0,1737.9,31.35993695]
[1746021569565,4.35826,1738.0,1737.9,30.15903695]
[1746021569760,79.49527869,1738.0,1736.1,3.2078]
[1746021569953,79.49527869,1738.0,1735.9,0.01226697]
[1746021569954,1.15171,1736.1,1735.9,0.01226697]
[1746021570154,5.75381,1737.6,1735.9,0.01226697]
[1746021570155,3.2078,1736.6,1736.3,48.19646642]
[1746021570456,3.2078,1737.3,1736.4,3.2078]
[1746021570761,77.55828,1738.0,1736.6,37.7167]
[1746021570762,0.11512779,1737.2,1736.6,37.7167]
[1746021571058,0.11512779,1737.2,1737.1,1.15105]
[1746021571059,7.79e-06,1737.2,1737.1,1.15105]
[1746021571259,3.2078,1738.4,1737.7,85.91316642]
[1746021571463,3.2078,1738.0,1737.3,44.59089642]
[1746021571758,3.2078,1737.4,1735.8,3.2078]
[1746021571958,3.2078,1736.8,1736.3,44.59089642]
[1746021572152,3.2078,1737.1,1736.2,3.2078]
[1746021572353,3.2078,1738.0,1737.6,44.59089642]
[1746021572561,13.07489443,1739.7,1737.4,1.15082]
[1746021572562,3.2078,1738.9,1738.2,1.15032]
[1746021572856,3.2078,1738.6,1738.5,44.59089642]
[1746021573057,5.74511,1740.2,1738.3,37.7167]
[1746021573058,3.2078,1739.4,1738.8,44.59089642]
[1746021573260,3.828,1738.9,1738.7,44.59089642]
[1746021573469,3.828,1738.9,1738.8,37.7167]
[1746021573657,3.2078,1739.5,1739.3,44.59089642]
[1746021573860,3.2078,1739.5,1738.8,54.83295501]
[1746021574059,3.2078,1739.1,1738.8,44.59089642]
[1746021574260,3.828,1739.5,1739.3,44.59089642]
[1746021574461,3.828,1739.5,1739.2,44.59089642]
[1746021574658,3.2078,1739.4,1739.2,44.59089642]
[1746021574968,1.1496,1739.3,1738.9,44.0078]
[1746021575162,7.0358,1739.4,1739.1,44.59089642]
[1746021575360,8.18536,1739.4,1739.3,44.59089642]
[1746021575564,8.18536,1739.4,1738.9,20.32405501]
[1746021575565,7.0358,1739.4,1738.9,3.2078]
[1746021575762,3.2078,1739.2,1739.0,37.7167]
[1746021575959,3.828,1739.4,1739.3,82.30759642]
[1746021576362,3.828,1739.4,1739.3,99.42385143]
[1746021576564,3.2078,1740.2,1739.4,82.30759642]
[1746021576768,3.2078,1740.2,1739.6,44.59089642]
[1746021576965,1.14923,1739.9,1739.8,44.59089642]
[1746021577174,4.35703,1739.9,1739.6,38.07505372]
[1746021577472,0.11493592,1740.1,1739.7,44.59089642]
[1746021577657,0.11493592,1740.1,1739.6,0.35835372]
[1746021577658,3.2078,1739.8,1739.1,3.2078]
[1746021577970,1.14953,1739.4,1739.3,44.59089642]
[1746021578163,1.14966,1739.3,1739.1,0.35835372]
[1746021578471,8.2078,1739.3,1738.3,3.2078]
[1746021578765,3.828,1739.8,1738.8,37.26023175]
[1746021578968,3.2078,1739.2,1738.7,3.2078]
[1746021579169,3.2078,1739.5,1738.9,3.2078]
[1746021579361,3.2078,1739.5,1739.3,37.26023175]
[1746021579558,3.2078,1739.5,1739.4,64.71300026]
[1746021579762,0.28738935,1740.2,1739.4,3.2078]
[1746021580066,8.61307378,1740.9,1740.3,37.26023175]
[1746021580268,8.61307378,1740.9,1740.2,37.26023175]
[1746021580460,5.40527378,1740.9,1740.6,37.26023175]
[1746021580660,5.40527378,1740.9,1740.5,40.46803175]
[1746021580967,5.40527378,1740.9,1740.5,37.26023175]
[1746021581268,9.23327378,1740.9,1740.5,37.26023175]
[1746021581468,9.23327378,1740.9,1740.2,3.2078]
[1746021581669,9.23327378,1740.9,1740.6,37.26023175]
[1746021581865,9.23327378,1740.9,1740.7,37.26023175]
[1746021582070,9.23327378,1740.9,1740.8,64.71300026]
[1746021582266,9.23327378,1740.9,1740.8,37.26023175]
[1746021582771,9.23327378,1740.9,1740.3,40.8]
[1746021582969,12.44107378,1740.9,1740.8,37.26023175]
[1746021583276,12.44107378,1740.9,1740.7,37.26023175]
[1746021583468,7.0358,1740.9,1740.3,44.0078]
[1746021583767,3.2078,1740.6,1740.3,0.07096437]
[1746021583971,3.828,1740.9,1739.9,3.2078]
[1746021583972,3.2078,1740.4,1739.9,3.2078]
[1746021584169,3.2078,1740.4,1740.0,24.07196354]
[1746021584369,3.2078,1740.4,1740.3,51.52473205]
[1746021584569,3.828,1740.6,1740.3,51.52473205]
[1746021584771,3.828,1740.6,1740.5,51.52473205]
[1746021584971,3.828,1740.6,1740.3,0.07096437]
[1746021585170,7.0358,1740.6,1740.4,24.07196354]
[1746021585375,3.828,1740.6,1740.4,24.07196354]
[1746021585568,3.828,1740.6,1740.5,51.52473205]
[1746021585873,7.0358,1740.6,1740.5,51.52473205]
[1746021586076,3.828,1740.6,1739.9,3.2078]
[1746021586378,3.828,1740.6,1740.5,24.07196354]
[1746021586672,3.828,1740.6,1740.5,51.52473205]
[1746021586866,3.828,1740.6,1740.5,51.59569642]
[1746021587475,3.828,1740.6,1740.5,59.80349642]
[1746021587662,3.828,1740.6,1740.5,54.80349642]
[1746021587971,3.828,1740.6,1740.5,56.59569642]
[1746021588162,3.2078,1741.6,1740.5,5.0]
[1746021588365,3.2078,1741.8,1741.5,24.07196354]
[1746021588881,3.2078,1741.8,1741.7,24.07196354]
[1746021589066,3.2078,1741.8,1741.7,51.52473205]
[1746021589369,7.0358,1741.8,1741.7,51.52473205]
[1746021589577,3.828,1741.8,1741.7,51.52473205]
[1746021589773,3.828,1741.8,1741.7,56.52473205]
[1746021589968,5.40527378,1742.4,1741.7,35.66056851]
[1746021590272,5.40527378,1742.4,1742.3,47.69673205]
[1746021590477,5.40527378,1742.4,1742.3,55.90453205]
[1746021590671,3.2078,1742.8,1742.3,47.69673205]
[1746021590862,3.2078,1742.8,1742.4,27.45276851]
[1746021591065,3.2078,1742.6,1742.2,20.24396354]
[1746021591264,3.828,1742.8,1742.5,20.24396354]
[1746021591478,7.0358,1742.8,1742.5,20.24396354]
[1746021591769,12.0358,1742.8,1742.0,3.2078]
[1746021591964,3.2078,1742.7,1741.7,3.2078]
[1746021592178,4.97533,1742.8,1742.4,20.24396354]
[1746021592374,1.14747,1742.6,1742.3,20.24396354]
[1746021592669,3.2078,1742.7,1742.4,47.69673205]
[1746021592870,3.2078,1742.7,1742.3,20.24396354]
[1746021593171,3.2078,1742.5,1742.2,20.24396354]
[1746021593374,3.2078,1742.3,1742.1,20.24396354]
[1746021593869,3.2078,1742.3,1742.2,47.69673205]
[1746021594075,3.828,1742.7,1742.2,47.69673205]
[1746021594276,1.14732,1742.8,1742.5,20.24396354]
[1746021594468,3.2078,1742.7,1742.4,20.24396354]
[1746021594667,3.2078,1742.5,1741.9,3.2078]
[1746021594866,4.35533,1742.5,1741.9,3.2078]
[1746021595070,5.40527378,1742.9,1741.2,3.2078]
[1746021595071,3.2078,1742.2,1741.2,3.2078]
[1746021595276,7.0358,1742.5,1742.3,19.01285354]
[1746021595578,7.0358,1742.5,1741.6,3.2078]
[1746021595579,3.828,1742.5,1742.4,46.46562205]
[1746021595770,3.828,1742.5,1742.3,19.01285354]
[1746021595968,3.828,1742.5,1742.4,46.46562205]
[1746021596171,4.35508,1742.9,1742.4,46.46562205]
[1746021596474,3.2078,1742.5,1741.7,3.2078]
[1746021596777,3.2078,1742.5,1742.3,19.01285354]
[1746021596975,4.35533,1742.5,1742.2,46.46562205]
[1746021597179,7.0358,1742.5,1742.2,19.01285354]
[1746021597473,3.828,1742.5,1742.4,46.46562205]
[1746021597673,7.0358,1742.5,1742.2,27.45276851]
[1746021597870,3.2078,1742.3,1742.0,46.46562205]
[1746021598067,1.14781,1742.0,1741.2,3.2078]
[1746021598267,4.35558,1742.1,1741.9,46.46562205]
[1746021598471,3.2078,1742.1,1741.9,19.01285354]
[1746021599173,3.2078,1742.1,1742.0,19.01285354]
[1746021599370,3.2078,1742.1,1741.8,19.01285354]
[1746021599580,3.2078,1741.9,1741.0,3.2078]
[1746021599776,3.2078,1741.7,1741.5,19.01285354]
[1746021600072,1.14786,1742.0,1741.8,19.01285354]
[1746021600269,4.35572,1741.9,1741.7,19.01285354]
[1746021600467,3.2078,1741.9,1740.7,3.2078]
[1746021600675,1.14845,1741.1,1740.9,46.46562205]
[1746021600875,3.2078,1741.1,1740.3,3.2078]
[1746021601074,3.2078,1741.0,1740.6,27.45276851]
[1746021601273,3.828,1741.1,1741.0,46.46562205]
[1746021601682,12.0358,1741.1,1740.2,3.2078]
[1746021601981,3.828,1741.1,1741.0,19.01285354]
[1746021602181,3.2078,1741.1,1740.6,19.01285354]
[1746021602377,3.2078,1740.8,1740.6,27.45276851]
[1746021602678,3.2078,1741.4,1740.7,19.01285354]
[1746021602877,5.718,1742.0,1739.7,40.8]
[1746021602878,3.2078,1742.0,1741.5,19.01285354]
[1746021603182,1.14823,1741.4,1741.2,19.01285354]
[1746021603383,3.2078,1741.7,1741.3,19.01285354]
[1746021603679,3.2078,1741.7,1741.2,3.2078]
[1746021603878,1.14745,1742.6,1741.6,30.66056851]
[1746021604081,1.14755,1742.4,1742.3,19.01285354]
[1746021604375,5.40527378,1742.7,1742.3,46.46562205]
[1746021604576,3.2078,1742.4,1741.2,3.828]
[1746021604783,3.2078,1741.3,1740.7,3.2078]
[1746021605078,3.2078,1741.7,1741.5,16.43286354]
[1746021605285,3.2078,1741.7,1741.4,27.45276851]
[1746021605482,3.2078,1741.7,1741.6,16.43286354]
[1746021605675,3.2078,1742.1,1741.6,43.88563205]
[1746021605978,3.2078,1742.1,1741.8,16.43286354]
[1746021606174,0.43153405,1742.0,1741.9,16.43286354]
[1746021606378,7.0358,1742.1,1741.9,16.43286354]
[1746021606777,0.43189925,1742.0,1741.0,3.2078]
[1746021606978,4.35593,1741.6,1741.4,16.43286354]
[1746021607175,1.14872,1740.7,1739.8,3.2078]
[1746021607372,3.2078,1740.8,1740.3,15.03224354]
[1746021607577,3.2078,1740.5,1739.4,3.2078]
[1746021607883,3.2078,1739.7,1738.8,3.2078]
[1746021608075,3.63982975,1739.6,1738.7,3.2078]
[1746021608276,3.2078,1740.3,1739.9,12.62537354]
[1746021608477,0.43166698,1740.2,1739.3,3.2078]
[1746021608678,0.43166698,1740.1,1739.9,27.45276851]
[1746021608879,8.18462,1740.5,1740.0,12.62537354]
[1746021609179,0.43192809,1740.4,1740.1,12.62537354]
[1746021609485,3.2078,1741.0,1740.1,3.2078]
[1746021609677,3.2078,1741.4,1741.1,12.62537354]
[1746021609975,0.42528625,1741.3,1741.1,12.62537354]
[1746021610172,3.2078,1741.6,1741.1,27.45276851]
[1746021610378,3.2078,1741.6,1741.5,12.62537354]
[1746021610579,8.63399611,1741.6,1740.4,3.2078]
[1746021610782,3.2078,1741.1,1740.6,12.62537354]
[1746021610988,3.2078,1740.9,1740.0,70.914]
[1746021611177,2.86931,1742.2,1740.2,12.62537354]
[1746021611178,3.2078,1740.7,1740.2,12.62537354]
[1746021611378,3.2078,1740.5,1739.8,3.2078]
[1746021611578,3.2078,1740.2,1739.8,3.2078]
[1746021611885,3.2078,1740.3,1739.8,5.57176825]
[1746021612089,3.2078,1740.1,1739.1,3.2078]
[1746021612388,3.63352992,1740.0,1739.5,27.45276851]
[1746021612592,0.42572992,1739.9,1739.3,2.36396825]
[1746021612889,3.828,1740.3,1739.9,2.36396825]
[1746021613081,7.0358,1740.3,1739.7,27.45276851]
[1746021613288,0.42498777,1740.2,1740.0,2.36396825]
[1746021613486,3.2078,1740.3,1739.8,2.36396825]
[1746021613686,3.2078,1740.3,1739.9,27.45276851]
[1746021613883,5.40527378,1741.2,1739.8,2.36396825]
[1746021613884,3.2078,1740.1,1739.8,2.36396825]
[1746021614091,0.42492276,1740.0,1739.6,2.36396825]
[1746021614285,3.2078,1740.0,1739.5,27.45276851]
[1746021614482,1.14955,1739.4,1739.0,3.2078]
[1746021614691,4.35735,1739.4,1739.0,2.36396825]
[1746021614884,8.2078,1739.4,1738.5,3.2078]
[1746021615191,3.2078,1738.7,1737.8,3.2078]
[1746021615488,3.828,1739.4,1737.6,0.1000965]
[1746021615489,3.2078,1738.2,1737.7,0.78426825]
[1746021615679,3.2078,1738.0,1737.1,3.2078]
[1746021615884,3.2078,1737.8,1737.6,0.78426825]
[1746021616094,3.2078,1737.8,1737.7,0.78426825]
[1746021616284,3.2078,1738.7,1737.7,27.45276851]
[1746021616480,3.2078,1738.6,1738.5,0.78426825]
[1746021616682,1.14988,1738.9,1738.6,0.78426825]
[1746021616884,3.2078,1739.2,1738.9,0.78426825]
[1746021617089,3.2078,1739.0,1738.3,0.78426825]
[1746021617284,3.828,1739.2,1739.1,0.78426825]
[1746021617485,3.828,1739.2,1739.1,28.23703676]
[1746021617992,3.04373175,1739.2,1739.1,35.66056851]
[1746021618190,8.61307378,1740.3,1739.1,76.46056851]
[1746021618191,3.2078,1740.1,1739.1,76.46056851]
[1746021618491,5.40527378,1740.3,1739.9,3.2078]
[1746021618682,5.40527378,1740.3,1739.7,3.2078]
[1746021618880,1.14909,1740.1,1739.8,27.45276851]
[1746021619078,1.14904,1740.2,1739.3,3.2078]
[1746021619387,9.23327378,1740.3,1739.3,3.2078]
[1746021619591,3.2078,1740.0,1739.1,3.2078]
[1746021619780,1.1492,1739.9,1739.5,27.45276851]
[1746021619985,3.2078,1740.2,1739.1,30.66056851]
[1746021620186,3.2078,1739.5,1738.6,3.2078]
[1746021620496,3.2078,1739.1,1738.6,27.45276851]
[1746021620689,3.2078,1738.9,1738.1,3.2078]
[1746021620996,1.15015,1738.5,1737.8,3.2078]
[1746021621196,3.2078,1738.4,1737.6,3.2078]
[1746021621588,3.2078,1738.2,1737.3,3.2078]
[1746021621785,3.2078,1738.4,1737.6,27.45276851]
[1746021621988,1.15085,1737.5,1737.3,3.2078]
[1746021622198,3.2078,1737.6,1736.5,18.07829753]
[1746021622399,3.2078,1737.6,1736.7,3.2078]
[1746021622906,3.2078,1737.6,1737.0,27.45276851]
[1746021623207,3.2078,1737.6,1737.3,27.45276851]
[1746021623506,3.2078,1738.4,1737.5,27.45276851]
[1746021623696,3.2078,1738.4,1736.8,45.8]
[1746021623697,3.2078,1738.2,1737.2,3.2078]
[1746021623895,3.2078,1738.1,1737.0,3.2078]
[1746021624097,3.2078,1737.7,1737.0,27.45276851]
[1746021624305,3.2078,1737.9,1737.1,27.45276851]
[1746021624500,3.2078,1737.4,1736.9,3.2078]
[1746021624703,3.2078,1737.2,1736.5,14.87049753]
[1746021624897,3.2078,1737.0,1736.5,14.87049753]
[1746021625203,1.15134,1736.7,1736.5,14.87049753]
[1746021625405,1.15178,1736.0,1735.9,6.97e-06]
[1746021625605,3.2078,1736.1,1734.6,3.2078]
[1746021625800,73.86768,1736.5,1735.4,27.45276851]
[1746021625801,3.2078,1735.5,1735.4,27.45276851]
[1746021625999,4.35951,1736.2,1735.7,27.45276851]
[1746021626201,3.2078,1736.5,1735.7,27.45276851]
[1746021626403,70.989,1737.4,1735.7,27.45276851]
[1746021626404,3.2078,1736.9,1735.8,40.8]
[1746021626604,3.2078,1736.9,1735.9,3.2078]
[1746021626803,3.2078,1736.8,1736.6,27.45276851]
[1746021627009,3.2078,1736.8,1736.3,27.45276851]
[1746021627208,3.2078,1736.6,1735.5,3.2078]
[1746021627404,3.2078,1736.5,1735.5,3.2078]
[1746021627606,3.828,1736.8,1736.2,27.45276851]
[1746021627900,3.2078,1736.3,1735.5,3.22196207]
[1746021628111,3.2078,1736.3,1735.8,27.45276851]
[1746021628315,3.2078,1736.2,1735.6,27.45276851]
[1746021628606,1.15265,1734.7,1734.2,3.2078]
[1746021628810,1.15264,1734.7,1734.2,27.45276851]
[1746021629000,3.2078,1734.5,1734.2,0.01416207]
[1746021629202,71.028,1736.0,1734.2,27.46693058]
[1746021629402,3.2078,1734.8,1734.2,3.2078]
[1746021629607,3.2078,1734.3,1732.7,3.2078]
[1746021629909,71.028,1736.1,1734.0,3.2078]
[1746021630208,3.2078,1734.2,1733.4,4.17531588]
[1746021630403,3.2078,1733.5,1733.4,4.17531588]
[1746021630607,3.2078,1733.9,1733.4,4.18947795]
[1746021630904,3.2078,1733.8,1733.4,4.18947795]
[1746021631108,71.074,1735.7,1733.5,2.019]
[1746021631305,3.2078,1734.2,1733.9,3.2078]
[1746021631506,3.2078,1734.1,1733.6,3.2078]
[1746021631706,71.074,1735.7,1733.8,3.2078]
[1746021632006,3.2078,1735.5,1734.7,3.2078]
[1746021632208,4.36038,1734.8,1734.1,3.2078]
[1746021632515,1.15338,1733.6,1733.5,0.35934]
[1746021632716,3.2078,1733.6,1732.3,3.2078]
[1746021632914,71.074,1733.9,1732.5,11.30594668]
[1746021632915,3.2078,1733.2,1732.5,11.30594668]
[1746021633113,3.2078,1733.3,1733.0,3.58682588]
[1746021633415,3.2078,1734.7,1734.1,0.8744]
[1746021633711,3.2078,1735.1,1734.4,3.2078]
[1746021633917,3.2078,1735.8,1735.4,3.58682588]
[1746021634211,3.2078,1736.9,1735.7,3.2078]
[1746021634416,3.2078,1737.4,1737.1,3.58682588]
[1746021634614,4.35852,1737.6,1736.5,3.2078]
[1746021634823,2.57319303,1737.3,1736.9,3.58682588]
[1746021635010,1.15079,1737.5,1736.4,3.2078]
[1746021635011,5.78099303,1737.0,1736.6,3.58682588]
[1746021635310,3.828,1737.3,1736.9,3.2078]
[1746021635515,3.828,1737.3,1737.2,3.58682588]
[1746021635905,3.828,1737.3,1736.4,44.0078]
[1746021636111,6.40119303,1737.3,1736.9,3.58682588]
[1746021636309,2.57319303,1737.2,1736.6,2.86380999]
[1746021636614,5.78099303,1736.7,1735.8,0.8736]
[1746021636811,2.57319303,1736.7,1735.9,3.2078]
[1746021637015,3.2078,1736.7,1736.0,40.8]
[1746021637207,3.2078,1737.2,1736.1,3.2078]
[1746021637512,3.2078,1737.1,1736.1,3.2078]
[1746021637719,3.2078,1737.3,1736.3,4.35936]
[1746021637911,3.2078,1737.3,1736.3,3.2078]
[1746021638110,3.2078,1737.1,1736.1,3.2078]
[1746021638315,3.2078,1736.7,1736.1,3.2078]
[1746021638515,3.2078,1737.4,1736.3,3.2078]
[1746021638718,3.2078,1737.1,1736.5,3.2078]
[1746021639021,3.2078,1737.6,1736.7,3.2078]
[1746021639216,0.1156,1737.0,1736.7,3.2078]
[1746021639513,0.1156,1737.0,1736.9,3.2078]
[1746021639914,0.1156,1737.0,1736.9,8.2078]
[1746021640111,0.1156,1737.0,1736.9,5.0]
[1746021640818,0.1156,1737.0,1736.1,3.2078]
[1746021641117,2.57319303,1736.8,1736.0,40.8]
[1746021641322,3.2078,1736.3,1735.8,0.8736]
[1746021641616,3.2078,1736.6,1736.1,3.2078]
[1746021641821,3.9436,1737.0,1736.3,3.2078]
[1746021642121,5.2369,1737.2,1736.7,1.15129]
[1746021642421,3.2078,1738.1,1737.1,3.2078]
[1746021642726,3.2078,1738.0,1737.0,3.2078]
[1746021643025,3.2078,1738.0,1736.0,3.828]
[1746021643026,14.96149303,1737.1,1736.0,3.828]
[1746021643214,14.96149303,1736.8,1735.8,0.8736]
[1746021643416,3.2078,1736.8,1735.9,3.2078]
[1746021643616,3.2078,1736.8,1736.0,40.8]
[1746021643916,3.2078,1736.8,1736.0,44.0078]
[1746021644217,3.2078,1736.8,1736.0,40.8]
[1746021644414,3.2078,1736.6,1735.8,0.8736]
[1746021644928,3.2078,1736.8,1735.9,40.8]
[1746021645125,3.2078,1736.6,1735.9,40.8]
[1746021645420,3.828,1736.8,1736.1,3.2078]
[1746021645619,3.7691,1737.2,1736.4,3.2078]
[1746021645823,3.2078,1738.0,1736.6,3.2078]
[1746021646014,3.2078,1738.2,1737.4,1.15083]
[1746021646212,9.86990356,1739.5,1737.6,3.2078]
[1746021646213,3.2078,1738.4,1737.6,3.2078]
[1746021646410,19.54889303,1738.9,1738.1,1.7365]
[1746021646625,19.54889303,1739.1,1738.2,9.4]
[1746021646815,3.2078,1739.0,1738.2,3.2078]
[1746021647011,19.54889303,1739.0,1737.8,3.2078]
[1746021647212,19.54889303,1738.4,1737.6,9.4]
[1746021647714,3.2078,1738.2,1737.6,9.4]
[1746021648324,16.34109303,1738.1,1737.6,9.4]
[1746021648622,9.4,1739.3,1737.1,3.2078]
[1746021648623,3.2078,1737.7,1737.1,3.2078]
[1746021648822,3.2078,1737.8,1736.9,3.2078]
[1746021649118,3.2078,1738.0,1737.1,3.2078]
[1746021649317,3.2078,1738.0,1737.2,9.397]
[1746021649620,3.2078,1738.0,1737.0,3.828]
[1746021649621,3.2078,1737.3,1737.0,3.828]
[1746021649820,3.2078,1737.5,1737.0,3.828]
[1746021650010,3.2078,1737.8,1737.0,3.828]
[1746021650216,0.0088,1737.9,1737.4,3.2078]
[1746021650421,0.0088,1737.9,1737.6,3.2078]
[1746021650620,0.0088,1737.9,1737.7,40.8]
[1746021651014,0.0088,1737.9,1737.4,71.064]
[1746021651325,3.2078,1737.7,1737.4,71.064]
[1746021651621,0.0088,1737.9,1737.4,111.864]
[1746021651816,3.2078,1737.7,1737.4,111.864]
[1746021652020,3.2078,1737.7,1737.4,116.864]
[1746021652222,0.0088,1737.9,1737.4,120.692]
[1746021652421,0.0088,1737.9,1737.4,115.692]
[1746021652827,3.2078,1738.2,1737.5,3.2078]
[1746021653023,3.2078,1738.5,1737.7,3.2078]
[1746021653322,3.2078,1738.5,1737.9,3.2078]
[1746021653722,3.2078,1738.5,1737.9,8.2078]
[1746021654124,3.2078,1738.7,1738.1,3.2078]
[1746021654321,3.2078,1738.7,1738.3,3.2078]
[1746021654521,3.2078,1738.7,1738.4,9.393]
[1746021654725,3.2078,1739.2,1738.4,80.429]
[1746021655021,3.2078,1739.2,1738.5,3.2078]
[1746021655224,3.2078,1739.7,1738.8,3.2078]
[1746021655420,16.34109303,1739.4,1738.7,3.2078]
[1746021655618,3.2078,1739.8,1738.6,3.2078]
[1746021655820,3.62180738,1740.7,1740.1,3.2078]
[1746021656022,9.05451847,1741.2,1740.6,3.2078]
[1746021656222,9.05451847,1741.2,1740.8,3.2078]
[1746021656522,9.05451847,1741.2,1740.7,9.393]
[1746021656523,9.05451847,1741.2,1741.0,3.2078]
[1746021656925,8.9598,1744.2,1742.4,3.2078]
[1746021657223,3.2078,1744.1,1743.0,3.2078]
[1746021657522,3.2078,1743.9,1743.2,3.2078]
[1746021657823,3.2078,1743.9,1743.0,3.2078]
[1746021658019,4.35443,1743.9,1743.0,3.2078]
[1746021658221,7.0358,1743.9,1743.4,3.2078]
[1746021658426,3.828,1743.9,1743.8,3.2078]
[1746021658626,3.828,1743.9,1743.3,3.2078]
[1746021658827,3.828,1743.9,1743.8,3.2078]
[1746021659124,3.828,1743.9,1743.8,3.18654]
[1746021659322,17.93887076,1744.5,1743.8,3.18654]
[1746021659522,17.93887076,1744.5,1744.0,3.2078]
[1746021659724,17.86962631,1747.3,1744.0,3.2078]
[1746021660029,3.2078,1747.3,1746.2,3.2078]
[1746021660231,1.14466,1746.8,1746.4,3.2078]
[1746021660524,3.2078,1747.3,1746.2,3.2078]
[1746021660727,3.2078,1747.1,1746.1,3.2078]
[1746021660926,3.2078,1746.9,1745.7,3.2078]
[1746021661226,3.2078,1746.9,1746.3,3.2078]